Cogmind - Beta 17 @@@ ROGUE MODE // 2026.07.25 @ 17:58:12 // Winter2019/RPGLIKE Player: Gallgagger Result: Self-destructed Performance ------------- Evolutions (1) 500 Regions Visited (6) 1200 Robots Destroyed (107) 535 Value Destroyed (3011) 3011 Prototype IDs (23) 460 Alien Tech Used (0) 0 Bonus (907) 907 TOTAL SCORE: 6613 Bonus ------- High Alert Combat Kills 547 Follower Combat Kills 60 Aligned with FarCom 300 Cogmind --------- Core Integrity 211/600 Matter 300/300 Energy 125/125 System Corruption 0% Temperature Cool (0) Movement Flying (29) Location -8/Mines Parts ------- > --- POWER (1) -------- Light Ion Engine > --- PROPULSION (3) --- Cesium-ion Thruster Cesium-ion Thruster Cesium-ion Thruster > --- UTILITY (6) ------ Makeshift Microdissipator Network Signal Interpreter Propulsion Shielding Weapon Shielding Hardened Light Armor Plating Hardened Light Armor Plating > --- WEAPON (2) ------- EM Shotgun EM Shotgun > --- INVENTORY (4) ---- Heavy EM Pulse Gun Dirty Datajack (20) Heavy Hammer Peak State ------------ > --- POWER ------------ Light Nuclear Core > --- PROPULSION ------- Cesium-ion Thruster Cesium-ion Thruster Cesium-ion Thruster > --- UTILITY ---------- Improved Heat Sink Makeshift Microdissipator Network Signal Interpreter Hardened Light Armor Plating Hardened Light Armor Plating > --- WEAPON ----------- EM Shotgun Heavy Hammer > --- INVENTORY -------- Heavy EM Pulse Gun Dirty Datajack [Rating: 28] Favorites ----------- Power Light Nuclear Core Engine Light Ion Engine Power Core Light Nuclear Core Propulsion Cesium-ion Thruster Flight Unit Cesium-ion Thruster Utility Hardened Light Armor Plating Device Makeshift Microdissipator Network Processor Signal Interpreter Protection Hardened Light Armor Plating Weapon Medium Laser Energy Gun Medium Laser Energy Cannon Ion Cannon Impact Weapon Hammer Special Melee Weapon Dirty Datajack Build | -11 -10 -10 -9 -9 -9 -8 ------- Run | Yrd Mat Min Mat Min Exi Min Slots Evolved 8 | 4 1 . . 3 . . Power . | . . . . . . . Propulsion 2 | 2 . . . . . . Utility 5 | 1 1 . . 3 . . Weapon 1 | 1 . . . . . . Parts Attached 39 | 3 8 3 18 5 . 2 Power 3 | 1 . . 1 . . 1 Engine 2 | 1 . . . . . 1 Core 1 | . . . 1 . . . Reactor . | . . . . . . . Propulsion 14 | . 4 3 7 . . . Treads . | . . . . . . . Leg . | . . . . . . . Wheel . | . . . . . . . Hover . | . . . . . . . Flight 14 | . 4 3 7 . . . Utility 14 | . 3 . 6 5 . . Device 4 | . . . 2 2 . . Storage . | . . . . . . . Processor 1 | . 1 . . . . . Hackware . | . . . . . . . Protection 9 | . 2 . 4 3 . . Artifact . | . . . . . . . Weapon 8 | 2 1 . 4 . . 1 Energy Gun 4 | 2 . . 1 . . 1 Energy Cannon 1 | . . . 1 . . . Ballistic Gun . | . . . . . . . Ballistic Cannon . | . . . . . . . Launcher . | . . . . . . . Special Weapon . | . . . . . . . Impact Weapon 2 | . 1 . 1 . . . Slashing Weapon . | . . . . . . . Piercing Weapon . | . . . . . . . Special Melee Weapon 1 | . . . 1 . . . Unidentified Prototypes . | . . . . . . . Corrupted Parts 1 | . 1 . . . . . System Corruption 6 | . 6 . . . . . Parts Lost 6 | . 3 . 1 1 . 1 Power 2 | . 1 . . . . 1 Propulsion 2 | . 1 . 1 . . . Utility 2 | . 1 . . 1 . . Weapon . | . . . . . . . Highest Loss Streak 2 | . 2 . 1 1 . 1 To Critical Strikes . | . . . . . . . Average Backups 1 | . . 2 2 2 3 3 Power . | . . . . . . . Propulsion . | . . . . . . . Utility . | . . . . . . . Weapon . | . . 1 1 1 2 2 Tool/Special . | . . . . . . . Unused Backups 3 | . . . 1 1 . 1 Power . | . . . . . . . Propulsion . | . . . . . . . Utility 1 | . . . 1 . . . Weapon 2 | . . . . 1 . 1 Tool/Special . | . . . . . . . Average Slot Usage (%) 85 | . 73 66 92 97 100 99 Engine 3 | . 11 . . . . 3 Core 4 | . . . 7 10 8 4 Flight 28 | . 22 33 32 30 25 25 Device 1 | . . . . 7 8 8 Processor 9 | . 7 11 11 10 8 8 Protection 14 | . 6 . 18 18 33 33 Energy Gun 13 | . 19 18 6 10 8 15 Energy Cannon 1 | . . . 4 . . . Impact Weapon 7 | . 4 3 11 10 8 . Peak Build Rating 28 | 3 8 6 25 28 28 28 Average Rating 14 | 2 5 6 17 23 28 27 On Entrance 13 | . 3 6 6 21 28 28 Avg Prop Armor Cover (%) . | . . . . . . . Naked Turns . | . . . . . . . Heaviest Build 24 | 7 10 4 23 24 24 24 Greatest Support 30 | 8 22 22 25 30 30 30 Greatest Overweight (x) 1 | . 1 . 1 . . . Average Overweight (x) . | . . . . . . . Largest Inventory Capacity 4 | 1 2 2 4 4 4 4 Average Capacity 2 | . 1 2 3 4 4 4 Most Carried 4 | . 2 2 4 3 3 3 Average Carried 2 | . 1 2 2 2 3 3 Final Capacity 4 | 1 2 2 4 4 4 4 Final Carried 3 | . 2 2 2 3 3 3 Class Distribution -------------------- 50% | Sprinter 49% | Mutant Dominant Class ---------------- Mutant | -10/Materials Mutant | -10/Mines Sprinter | -9/Materials Sprinter | -9/Mines Sprinter | -9/Exiles Sprinter | -8/Mines Resources | -11 -10 -10 -9 -9 -9 -8 ----------- Run | Yrd Mat Min Mat Min Exi Min Matter Collected 727 | 230 123 69 210 60 . 35 Remotely . | . . . . . . . Salvage Created 3044 | . 967 79 1533 278 . 187 Parts 130 | . 42 3 66 12 . 7 Haulers Intercepted . | . . . . . . . Recyclers Shooed . | . . . . . . . Parts Field Recycled . | . . . . . . . Retrieved Matter . | . . . . . . . Parts Self-Destructed . | . . . . . . . Prevented . | . . . . . . . Parts Restored . | . . . . . . . Kills | -11 -10 -10 -9 -9 -9 -8 ------- Run | Yrd Mat Min Mat Min Exi Min Combat Hostiles Destroyed 105 | . 37 7 44 16 . 1 Melee 47 | . 8 4 22 13 . . Guns 20 | . 17 3 . . . . Classes Destroyed 9 | . 4 1 3 . . 1 Worker 1 | . 1 . . . . . Tunneler 1 | . . . . . . 1 Operator 3 | . . . 3 . . . Watcher 1 | . . . 1 . . . Swarmer 31 | . 9 3 8 11 . . Grunt 54 | . 25 . 26 3 . . Sentry 12 | . . . 10 2 . . Subdweller 3 | . 3 . . . . . Assembled 4 | . . 4 . . . . Best Kill Streak 7 | . 5 4 7 4 . 1 Combat Bots Only 7 | . 5 4 7 4 . 1 Max Kills in Single Turn 1 | . 1 1 1 1 . 1 Gunslinging . | . . . . . . . Exploded . | . . . . . . . Melee 1 | . 1 1 1 1 . . Uniques/NPCs Destroyed 1 | . . . . . . 1 1C-UTU (-8/Mines) Combat | -11 -10 -10 -9 -9 -9 -8 -------- Run | Yrd Mat Min Mat Min Exi Min Hostile Shots Fired 532 | . 188 27 237 77 . 3 Missed 182 | . 54 10 88 28 . 2 Hits 350 | . 134 17 149 49 . 1 Melee 2 | . . 1 . . . 1 Projectile 348 | . 134 16 149 49 . . Critical Strikes 11 | . 1 . 5 4 . 1 Actively Blocked 1 | . 1 . . . . . Part Disruptions 1 | . . 1 . . . . Damage Taken 4144 | . 1493 194 1908 501 . 48 Core 2944 | . 1173 176 1216 341 . 38 Absorbed by Shields . | . . . . . . . Redirected to Core 1988 | . 707 61 946 236 . 38 Redirected to Shielding 93 | . 93 . . . . . Core Remaining (%) 84 | 100 . 68 . . . . Volleys Fired 135 | . 55 6 15 . . 59 Largest 2 | . 2 2 1 . . 2 Hottest 100 | . 100 100 45 . . 90 Shots Fired 254 | . 110 11 15 . . 118 Gun 254 | . 110 11 15 . . 118 Cannon . | . . . . . . . Launcher . | . . . . . . . Special . | . . . . . . . Kinetic . | . . . . . . . Thermal 121 | . 110 11 . . . . Explosive . | . . . . . . . Electromagnetic 133 | . . . 15 . . 118 Robot Hit Streak 14 | . 14 5 4 . . 5 Robot Miss Streak 11 | . 4 1 2 . . 11 Penetration Max . | . . . . . . . Secondary Targets . | . . . . . . . Shots Hit Robots 428 | . 156 14 151 38 . 69 Core Hits 93 | . 34 7 27 8 . 17 Critical Kills 8 | . 2 1 4 1 . . Critical Parts Destroyed 39 | . 14 1 17 7 . . Critical Strikes 62 | . 27 5 21 9 . . Burn 11 | . 8 3 . . . . Smash 51 | . 19 2 21 9 . . Melee Attacks 298 | . 88 12 155 40 1 2 Impact 298 | . 88 12 155 40 1 2 Slashing . | . . . . . . . Piercing . | . . . . . . . Sneak Attacks 14 | . 2 1 9 2 . . Combat Hostiles 12 | . 1 1 8 2 . . Follow-up Attacks . | . . . . . . . Damage Inflicted 9933 | . 3322 387 4299 1748 . 177 Guns 1345 | . 886 76 206 . . 177 Cannons . | . . . . . . . Explosions . | . . . . . . . Melee 8588 | . 2436 311 4093 1748 . . Ramming . | . . . . . . . Kinetic . | . . . . . . . Thermal 962 | . 886 76 . . . . Explosive . | . . . . . . . Electromagnetic 383 | . . . 206 . . 177 Impact 8588 | . 2436 311 4093 1748 . . Slashing . | . . . . . . . Piercing . | . . . . . . . Highest Corruption 6 | . 6 6 . . . . Average Corruption 6 | . 6 6 . . . . Corruption Purged . | . . . . . . . Corruption Blocked . | . . . . . . . Effects 12 | . 1 11 . . . . Message Errors 1 | . . 1 . . . . Matter Fused 5 | . 1 4 . . . . Heat Flow Errors 2 | . . 2 . . . . Energy Discharges 2 | . . 2 . . . . Data Loss (minor) 1 | . . 1 . . . . Weapon Failures 1 | . . 1 . . . . Overload Shots . | . . . . . . . Overflow Damage 2083 | . 550 19 936 578 . . Projectiles . | . . . . . . . Explosions . | . . . . . . . Melee 2083 | . 550 19 936 578 . . Knockbacks 19 | . 6 . 8 5 . . Impact 19 | . 6 . 8 5 . . Kinetic . | . . . . . . . Secondary . | . . . . . . . Self-Inflicted Damage . | . . . . . . . Shots . | . . . . . . . Rammed . | . . . . . . . Targets Rammed . | . . . . . . . Kicked . | . . . . . . . Crushed . | . . . . . . . Highest Temperature 132 | . . 132 . . . . Average Temperature 60 | . . 60 . . . . Received Heat Transfer 1310 | . 531 20 687 72 . . Siege Activations . | . . . . . . . Martial Activations . | . . . . . . . Shielding Activations . | . . . . . . . Robots Disrupted . | . . . . . . . Combat Hostiles . | . . . . . . . Robots Corrupted 38 | . 12 . 22 3 . 1 Combat Hostiles 37 | . 11 . 22 3 . 1 Parts Fried 48 | . 12 . 21 11 . 4 Impact Corruptions 94 | . 26 3 44 21 . . Robots Melted 1 | . 1 . . . . . Combat Hostiles 1 | . 1 . . . . . Parts Melted 4 | . 3 1 . . . . Heat Transferred 3663 | . 3219 444 . . . . Parts Sabotaged . | . . . . . . . Parts Stolen . | . . . . . . . Parts Stripped . | . . . . . . . Power Chain Reactions . | . . . . . . . Alert | -11 -10 -10 -9 -9 -9 -8 ------- Run | Yrd Mat Min Mat Min Exi Min Maximum Alert Level 3 | . 2 1 3 3 . . Low Security (%) 34 | 100 56 43 4 . . 100 Level 1 19 | . 16 56 22 . . . Level 2 27 | . 26 . 22 94 . . Level 3 18 | . . . 50 5 . . Level 4 . | . . . . . . . Level 5 . | . . . . . . . High Security . | . . . . . . . Max Security . | . . . . . . . Sterilizations 1 | . . . 1 . . . Peak Influence 1086 | . 603 270 1086 710 . 5 Initial 421 | . . 225 40 421 . . Average 391 | . 256 195 637 540 . . Influence Increases 3320 | . 1085 85 1618 525 . 7 Destroy 0b10 Robot/C 2060 | . 680 60 1000 320 . . Destroy 0b10 Robot/NC 30 | . 5 . 20 . . 5 Destroy Leader 442 | . 140 10 252 40 . . Allied During Kill 42 | . . . 42 . . . Trap Triggered on 0b10 10 | . . . 10 . . . Successful Hack 15 | . 10 . 5 . . . Select Force Hacks 170 | . 110 . 60 . . . Disable Machine 30 | . . . 15 15 . . Destroy Structure 11 | . 5 . 4 . . 2 Partial Spotted 120 | . . . 60 60 . . Lose Combat Pursuer 390 | . 135 15 150 90 . . Influence Decreases 3320 | . 506 560 640 913 694 7 Entered New Map 1773 | . . 354 64 661 694 . Time Decay 1417 | . 476 206 506 222 . 7 Lost Part 50 | . 30 . 10 10 . . Lost Ally 80 | . . . 60 20 . . Squads Dispatched 20 | . 10 . 10 . . . Investigation 17 | . 9 . 8 . . . Extermination . | . . . . . . . Reinforcement 3 | . 1 . 2 . . . Assault . | . . . . . . . Garrison . | . . . . . . . Intercept . | . . . . . . . Searches Triggered . | . . . . . . . Construction Impeded . | . . . . . . . Haulers Reinforced . | . . . . . . . Active Scanning Responses . | . . . . . . . Cargo Convoy Interrupts . | . . . . . . . Stealth | -11 -10 -10 -9 -9 -9 -8 --------- Run | Yrd Mat Min Mat Min Exi Min Distress Signals 9 | . 3 3 3 . . . Communications Jammed . | . . . . . . . Distress Signals . | . . . . . . . Times Spotted 161 | . 51 14 73 19 2 2 Peak Tracking Total 11 | . 6 4 7 4 11 1 Tactical Retreats 25 | . 7 3 8 4 1 2 Traps | -11 -10 -10 -9 -9 -9 -8 ------- Run | Yrd Mat Min Mat Min Exi Min Traps Triggered 2 | . 1 . 1 . . . Indirectly . | . . . . . . . Trap Hack Attempts . | . . . . . . . Triggered . | . . . . . . . Disarmed . | . . . . . . . Reprogrammed 1 | . . . 1 . . . Reused 1 | . . . 1 . . . Traps Extracted . | . . . . . . . Installed . | . . . . . . . Triggered 1 | . . . 1 . . . Machines | -11 -10 -10 -9 -9 -9 -8 ---------- Run | Yrd Mat Min Mat Min Exi Min Machines Disabled 3 | . . . 1 1 1 . Max in Single Turn 1 | . . . . 1 1 . Machines Repaired . | . . . . . . . Machines Dismantled . | . . . . . . . Machines Sabotaged 1 | . 1 . . . . . Overloaded Fab Kills . | . . . . . . . Hacking | -11 -10 -10 -9 -9 -9 -8 --------- Run | Yrd Mat Min Mat Min Exi Min Machines Accessed 18 | . 9 . 8 . 1 . Terminals 12 | . 6 . 6 . . . Fabricators . | . . . . . . . Repair Stations 1 | . 1 . . . . . Recycling Units 4 | . 2 . 2 . . . Scanalyzers . | . . . . . . . Garrison Access . | . . . . . . . Total Hacks 35 | . 20 . 14 . 1 . Successful 19 | . 10 . 8 . 1 . Failed 15 | . 9 . 6 . . . Catastrophic 2 | . . . 2 . . . Database Lockouts 1 | . 1 . . . . . Manual 33 | . 19 . 13 . 1 . Terminals 27 | . 16 . 11 . . . Fabricators . | . . . . . . . Repair Stations 2 | . 2 . . . . . Recycling Units 5 | . 2 . 3 . . . Scanalyzers . | . . . . . . . Garrison Access . | . . . . . . . Terminal Hacks 5 | . 2 . 2 . 1 . Robot Analysis 1 | . 1 . . . . . Locate Traps 2 | . 1 . 1 . . . Reprogram Traps 1 | . . . 1 . . . Proto ID Catalog 1 | . . . . . 1 . Fabricator Hacks . | . . . . . . . Repair Station Hacks . | . . . . . . . Recycling Unit Hacks . | . . . . . . . Scanalyzer . | . . . . . . . Garrison Access Hacks . | . . . . . . . Unauthorized Hacks 13 | . 8 . 5 . . . Terminals 8 | . 5 . 3 . . . Operators 1 | . . . 1 . . . Sabotage 7 | . 5 . 2 . . . Fabricators . | . . . . . . . Repair Stations 1 | . 1 . . . . . Patch 1 | . 1 . . . . . Recycling Units 4 | . 2 . 2 . . . Tunnel 4 | . 2 . 2 . . . Scanalyzers . | . . . . . . . Garrison Access . | . . . . . . . Data Cores Recovered . | . . . . . . . Used . | . . . . . . . Hacking Detections 9 | . 5 . 4 . . . Full Trace Events 4 | . 1 . 3 . . . Feedback Events . | . . . . . . . Feedback Blocked . | . . . . . . . Robot Schematics Acquired . | . . . . . . . Robots Built . | . . . . . . . Authchips . | . . . . . . . Time . | . . . . . . . Total Robot Build Rating . | . . . . . . . Part Schematics Acquired . | . . . . . . . Parts Built . | . . . . . . . Authchips . | . . . . . . . Time . | . . . . . . . Total Part Build Rating . | . . . . . . . Part Studies Acquired . | . . . . . . . Parts Repaired . | . . . . . . . Time . | . . . . . . . Parts Recycled . | . . . . . . . Recycled Matter . | . . . . . . . Retrieved Matter . | . . . . . . . Retrieved Components . | . . . . . . . Parts Scanalyzed . | . . . . . . . Part Schematics Acquired . | . . . . . . . Parts Damaged . | . . . . . . . Bothacking | -11 -10 -10 -9 -9 -9 -8 ------------ Run | Yrd Mat Min Mat Min Exi Min Used RIF Installer . | . . . . . . . Robots Hacked . | . . . . . . . Non-combat . | . . . . . . . Combat . | . . . . . . . Robot Hacks Applied . | . . . . . . . Relay Couplers Released . | . . . . . . . Fabnet Peak Effective % . | . . . . . . . Robots Rewired . | . . . . . . . Allies Hacked . | . . . . . . . Hacks Repelled . | . . . . . . . Allies | -11 -10 -10 -9 -9 -9 -8 -------- Run | Yrd Mat Min Mat Min Exi Min Total Allies 5 | . . 3 . 2 . . Largest Group 3 | . . 3 3 2 . . Highest-Rated Group 47 | . . 40 40 47 . . Highest-Rated Ally 31 | . . 16 16 31 . . Total Orders . | . . . . . . . Ally Attacks 40 | . . 10 25 5 . . Total Damage 435 | . . 89 284 62 . . Kills 9 | . . 2 6 1 . . Allies Corrupted . | . . . . . . . Allies Melted . | . . . . . . . Intel | -11 -10 -10 -9 -9 -9 -8 ------- Run | Yrd Mat Min Mat Min Exi Min Active Infowar (turns) . | . . . . . . . Robot Analysis Total 1 | . 1 . . . . . Derelict Logs Recovered 2 | . . 1 . 1 . . Drone Launches . | . . . . . . . Drone Recoveries . | . . . . . . . Exploration | -11 -10 -10 -9 -9 -9 -8 ------------- Run | Yrd Mat Min Mat Min Exi Min Turns Passed 4034 | 22 1278 423 1368 478 100 365 Spaces Moved 6087 | 34 1289 606 2226 1053 335 544 Core 78 | 34 44 . . . . . Treads . | . . . . . . . Legs . | . . . . . . . Wheels . | . . . . . . . Hover . | . . . . . . . Flight 6009 | . 1245 606 2226 1053 335 544 Fastest Speed 29 | 50 34 34 29 29 29 29 Average Speed 31 | 50 37 34 30 29 29 29 Slowest Speed 112 | 50 100 34 112 29 29 29 Overloaded Moves . | . . . . . . . Propulsion Burnouts . | . . . . . . . Robots Hopped 78 | . 16 13 37 3 . 9 Potential Cave-ins . | . . . . . . . Cave-ins Triggered . | . . . . . . . Exploration Rate (%) 70 | 3 99 96 91 98 62 41 Regions Visited 6 Branch Regions 4 Pre-discovered Areas 4 | . 2 . 2 . . . Known Exits Taken 5 | . 1 1 1 1 1 . Unknown Exits Taken 1 | 1 . . . . . . Scrap Searched 5 | . . 1 . 3 . 1 Spaces Dug 5 | . . . 3 . . 2 Terrain Destroyed 5 | . . . 3 . . 2 Melee 5 | . . . 3 . . 2 Projectile . | . . . . . . . AOE . | . . . . . . . Terrain Rammed . | . . . . . . . Walls Destroyed . | . . . . . . . Machines Disabled . | . . . . . . . Actions | -11 -10 -10 -9 -9 -9 -8 --------- Run | Yrd Mat Min Mat Min Exi Min Total 7310 | 36 1801 777 2593 1150 335 618 Wait 629 | . 293 153 128 37 . 18 Move 5932 | 33 1256 580 2157 1046 334 526 Hop 71 | . 16 12 31 3 . 9 Pick Up 15 | . 7 . 5 3 . . Fast Attach 23 | 3 10 . 6 3 . 1 Attach 1 | . . . . 1 . . Detach 2 | . 1 . 1 . . . Swap 26 | . 2 4 15 2 . 3 Drop 25 | . 7 3 13 2 . . Fire 135 | . 55 6 15 . . 59 Melee 298 | . 88 12 155 40 1 2 Ram . | . . . . . . . Kick . | . . . . . . . Crush . | . . . . . . . Escape Stasis . | . . . . . . . Rewire . | . . . . . . . Trap . | . . . . . . . Miscellaneous 153 | . 66 7 67 13 . . Route ------- -11/Scrapyard -10/Materials (discovered 5 exits: *Mat x3 / *Min / [*Sub]) -10/Mines (discovered 2 exits: *Mat x2) -9/Materials (discovered 6 exits: *Mat x3 / *Min x2 / *Sto) -9/Mines (discovered 3 exits: *Mat x2 / *Exi) -9/Exiles (discovered 2 exits: *Min x2) -8/Mines (discovered 1 exit: *Mat) History --------- Turn | Location | Event 2 | -11/Scrapyard | Met Revision 17 3 | -11/Scrapyard | Discovered new exit (range 15) 4 | -11/Scrapyard | Upgraded with Propulsion slot (x2) 4 | -11/Scrapyard | Upgraded with Utility slot (x1) 4 | -11/Scrapyard | Upgraded with Weapon slot (x1) 23 | -11/Scrapyard | Entered Materials 305 | -10/Materials | Build established: Mutant 376 | -10/Materials | Reached level 2 422 | -10/Materials | Discovered new exit (range 15) 448 | -10/Materials | Discovered new exit (range 8) 565 | -10/Materials | Discovered new exit (range 16) 570 | -10/Materials | Identified exit to Materials 662 | -10/Materials | Identified exit to Mines 689 | -10/Materials | Central database locked down 879 | -10/Materials | Reached level 3 906 | -10/Materials | Discovered new exit (range 11) 1023 | -10/Materials | Derelicts attacked the area 1099 | -10/Materials | Core integrity fell below 50% 1191 | -10/Materials | Discovered exit to Materials (range 15) 1247 | -10/Materials | Reached level 4 1301 | -10/Materials | Upgraded with Utility slot (x1) 1301 | -10/Materials | Entered Mines 1310 | -10/Mines | Learned Materials stockpile data 1338 | -10/Mines | Assembled infested the area 1520 | -10/Mines | Discovered exit to Materials (range 10) 1521 | -10/Mines | Discovered exit to Materials (range 10) 1563 | -10/Mines | Received a Rocket Launcher from a helpful Derelict 1579 | -10/Mines | Assisted by bots powering up and referring to "LRC-V3" 1724 | -10/Mines | Entered Materials 1724 | -9/Materials | Accompanied by 3 allies 1726 | -9/Materials | Reached level 5 1752 | -9/Materials | Reached level 6 1856 | -9/Materials | Discovered new exit (range 13) 1976 | -9/Materials | Discovered new exit (range 11) 2015 | -9/Materials | Reached level 7 2109 | -9/Materials | Destroyed 7 combat bots 2188 | -9/Materials | Discovered new exit (range 16) 2248 | -9/Materials | Reached level 8 2282 | -9/Materials | Build established: Sprinter 2326 | -9/Materials | Core integrity fell below 50% 2499 | -9/Materials | Discovered new exit (range 8) 2546 | -9/Materials | Discovered new exit (range 9) 2725 | -9/Materials | Reached level 9 2792 | -9/Materials | Discovered new exit (range 12) 2953 | -9/Materials | Identified exit to Storage 3059 | -9/Materials | Sterilization system engaged 3059 | -9/Materials | Non-combat units ordered to evacuate 3091 | -9/Materials | Identified exit to Mines 3092 | -9/Materials | Entered Mines 3095 | -9/Mines | Discovered new exit (range 6) 3203 | -9/Mines | Learned Materials stockpile data 3212 | -9/Mines | Discovered new exit (range 11) 3216 | -9/Mines | Identified exit to Materials 3345 | -9/Mines | Upgraded with Utility slot (x2) 3413 | -9/Mines | Reached level 10 3434 | -9/Mines | Deemed a non-threat by the Exiles lab entrance 3434 | -9/Mines | Discovered new exit (range 5) 3542 | -9/Mines | Upgraded with Utility slot (x1) 3570 | -9/Mines | Identified exit to Exiles 3570 | -9/Mines | Entered Exiles 3575 | -9/Exiles | Discovered new exit (range 15) 3578 | -9/Exiles | Met 8R-AWN 3582 | -9/Exiles | Met EX-HEX 3590 | -9/Exiles | Met EX-BIN 3593 | -9/Exiles | Met EX-DEC 3602 | -9/Exiles | Aligned with FarCom system 3602 | -9/Exiles | Given EX-Vault access code 3609 | -9/Exiles | Opened EX-Vault 3616 | -9/Exiles | Warned to stay clear of 0b10 Research branches 3629 | -9/Exiles | Attacked by the Exiles 3638 | -9/Exiles | Discovered new exit (range 12) 3642 | -9/Exiles | Identified exit to Mines 3670 | -9/Exiles | Entered Mines 3680 | -8/Mines | 1C-UTU came to Exiles' defense 3774 | -8/Mines | Discovered exit to Materials (range 15) 4027 | -8/Mines | Found a Scrap Suit stashed away for nefarious purposes 4028 | -8/Mines | Destroyed 1C-UTU 4035 | -8/Mines | Self-destructed Last Messages --------------- 03996_ U-05 Engineer destroyed. 04003_ 1C-UTU sneak attacks. 04003_ R-06 Scavenger destroyed. 04010_ 1C-UTU sneak attacks. 04010_ 1C-UTU follow-up attacks with Prototype Slashing Weapon. 04010_ R-06 Scavenger destroyed. 04018_ 1C-UTU sneak attacks. 04018_ T-07 Excavator destroyed. 04024_ 1C-UTU sneak attacks. 04024_ U-05 Engineer destroyed. 04027_ A message is left with an item here: "H4-X0R! I managed to smuggle one out! Take this to the hideout, the fools near Old Recycling think they can use this tech to beat 0b10 one day, and now we just have to find a way to safely deliver this to MAIN.C to get on their good side and convince them to let us into the system." 04028_ 1C-UTU system terminally corrupted. 04028_ Prototype Device fried. 04028_ Prototype Processor fried. 04028_ Prototype Storage fried. 04028_ Mak. Transmission Jammer fried. Map ----- +----------------------------------------------------+ | | | | | | | | | | | | | | | ?????????????????????????????????????????????????? | | ?????????????????????????????????????????????????? | | ?????????????????????????????????????????????????? | | ?????????????????????????????????????????????????? | | ?????????????????????????????????????????????????? | | ?????????????????????????????????????????????????? | | ?????????????????????????????????????????????????? | | ?????????????????????????????????????????????????? | | ?????????????????????????????????????????????????? | | ?????????????????????????????????????????????????? | | ?????????????????????????????????????#???????????? | | ???????????????????????????????????? #???????????? | | ??????????????????????????????????? ##??????????? | | ?????????????????????????????????? ##?????????? | | ?????????????????????????????????# ##????????? | | ?????????????????????????????#### #????????? | | ????????????????????????????## ##???????? | | ????????????????????#########! #???????? | | ????????????????????#%!%%@*! ???? | | ????????????????????#!####### ???? | | ????????????????????#!#?????## #????? | | ????????????????????#=######?###### ##????? | | ????????????????????#|% #???????? #?????? | | ????????????????????# #### #????????? #?????? | | ????????????????????# #??# ########??? ##?????? | | ????????????????????#!#?## #???? ###??????? | | ????????########????#%###"####### #?????#????????? | | ????????# #???##*=####??????????????????????? | | ????????# #??## ! ##???????????????????????? | | ????????# #?## %! #????????????????????????? | | ????????# #?# %% ##????????????????????????? | | ????????# ### ##?????????????????????????? | | ????????# !=* ##??????????????????????????? | | ????????# """ ##%####???????????????????????????? | | ????????# """ ##=#??????????????????????????????? | | ????????# """ ##=#??????????????????????????????? | | #???????# ## #?????###??????????????????????? | | ???????#########=#????## ##?????????????????????? | | ???????????????#=#???## #?????????????????????? | | ???????????????#=#??## ##????????????????????? | | ???????????????#%#??# #????????????????????? | | ??##############%#??# #????????????????????? | | #??# | !*#??# #????????????????????? | +----------------------------------------------------+ Best States ------------- Heat Dissipation 87 Energy Generation 19 Energy Capacity 160 Matter Stores 300 Matter Capacity 300 Sight Range 16 Terrain Scan Density 10 Armor Coverage 300 Propulsion Shielding 33 Weapon Shielding 33 Evasion (%) 64 Particle Charging 22 Offensive Hacking 5 Defensive Hacking 5 Item Schematics ----------------- None Robot Schematics ------------------ None Fabricated ------------ Nothing Repaired ---------- Nothing Studied --------- None Alien Tech Used ----------------- None Achievements -------------- None Challenges ------------ None RPGLIKE | -11 -10 -10 -9 -9 -9 -8 --------- Run | Yrd Mat Min Mat Min Exi Min Levels Raised 9 | . 3 . 5 1 . . XP Earned 17308 | 3000 4730 850 7031 1080 117 500 XP Spent 15960 | 2970 3100 640 3950 5300 . . Upgrades 32 | 10 7 4 7 4 . . Propulsion Slot 2 | 2 . . . . . . Utility Slot 5 | 1 1 . . 3 . . Weapon Slot 1 | 1 . . . . . . Heat Dissipation 8 | 4 . 4 . . . . Energy Generation 1 | . 1 . . . . . Mass Support 3 | 1 1 . . 1 . . Inventory Capacity 4 | 1 1 . 2 . . . Melee Accuracy 6 | . 3 . 3 . . . Hack Attack % 1 | . . . 1 . . . Hack Defense % 1 | . . . 1 . . . Protomatter Created 1066 | . 523 27 429 87 . . Integrity Restored 2965 | . 1200 120 1384 261 . . Core 2555 | . 1039 120 1135 261 . . Parts 410 | . 161 . 249 . . . Protomatter Decayed 120 | . 68 1 51 . . . Game ------ Seed BeamAdvancedExoskeleton Manual? 1 Play Time 00:47:20 Cumulative 690.1 hours Start 2026.07.25 @ 17:03:38 End 2026.07.25 @ 17:58:12 Sessions 1 Manual Loads 0 Difficulty Rogue Special Mode Winter2019/RPGLIKE Game No. 356 Rogue 202 Adventurer 154 Explorer 0 Win Type - Total 24 Types 4/6/5/3/2/1/0/1/1/1 Lore% 95 Gallery% 89 Achievement% 68 Wizard Run 0 Options --------- Layout 0 ASCII 0 Keyboard 0 Movement Numpad Keybinds 0 Fullscreen 2 Font 18/SmallcapsGlow Map View 76x50 Zoom Use 0% Tactical HUD 1 Map Filters NONE Filters NONE Steam 1 RUN: 7d24db2e-3270-43f2-9310-41e58550c6eb